[Event "*** SCC Grand Prix: Titled Tuesday Blitz"]
[Site "Chess.com"]
[Date "2020.06.02"]
[Round "8"]
[White "politeplayer"]
[Black "medalja"]
[Result "1-0"]
[WhiteElo "2268"]
[BlackElo "2407"]
[TimeControl "180+1"]
[EndTime "11:37:12 PDT"]
[Termination "politeplayer won by resignation"]

1. e4 {[%clk 0:03:00.4]} 1... c6 {[%clk 0:02:58.2]} 2. d4 {[%clk 0:03:00.2]}
2... d5 {[%clk 0:02:59.1]} 3. Nc3 {[%clk 0:02:58.6]} 3... dxe4 {[%clk
0:02:57.8]} 4. Nxe4 {[%clk 0:02:59]} 4... Bf5 {[%clk 0:02:58.7]} 5. Ng3 {[%clk
0:02:57.3]} 5... Bg6 {[%clk 0:02:58]} 6. Bc4 {[%clk 0:02:57.8]} 6... e6 {[%clk
0:02:55.7]} 7. N1e2 {[%clk 0:02:58]} 7... Bd6 {[%clk 0:02:54.3]} 8. Nf4 {[%clk
0:02:51.7]} 8... Ne7 {[%clk 0:02:54.3]} 9. Nxe6 {[%clk 0:02:42.9]} 9... fxe6
{[%clk 0:02:50.6]} 10. Bxe6 {[%clk 0:02:43.3]} 10... Nd7 {[%clk 0:02:30.4]} 11.
O-O {[%clk 0:02:36.3]} 11... Qc7 {[%clk 0:02:21.1]} 12. c4 {[%clk 0:02:30.5]}
12... Nf8 {[%clk 0:02:05]} 13. Bh3 {[%clk 0:02:22.4]} 13... Nd7 {[%clk
0:02:00.6]} 14. Re1 {[%clk 0:02:12]} 14... O-O {[%clk 0:01:55.3]} 15. c5 {[%clk
0:01:56.6]} 15... Bxg3 {[%clk 0:01:52.1]} 16. hxg3 {[%clk 0:01:56.8]} 16... Nf6
{[%clk 0:01:51.5]} 17. Bf4 {[%clk 0:01:53.7]} 17... Qd8 {[%clk 0:01:49.5]} 18.
Bd6 {[%clk 0:01:49.5]} 18... Re8 {[%clk 0:01:49.6]} 19. Qb3+ {[%clk 0:01:45.2]}
19... Kh8 {[%clk 0:01:44.3]} 20. Qxb7 {[%clk 0:01:44.6]} 20... Nf5 {[%clk
0:01:37.8]} 21. Bxf5 {[%clk 0:01:34.1]} 21... Bxf5 {[%clk 0:01:38.7]} 22. Qxc6
{[%clk 0:01:27.1]} 22... Be4 {[%clk 0:01:25.1]} 23. Qc7 {[%clk 0:01:20.3]} 23...
Qxc7 {[%clk 0:00:53.4]} 24. Bxc7 {[%clk 0:01:20.2]} 24... Rac8 {[%clk
0:00:53.9]} 25. Be5 {[%clk 0:01:17.5]} 25... Bc6 {[%clk 0:00:47.3]} 26. Bxf6
{[%clk 0:01:14.3]} 26... gxf6 {[%clk 0:00:48.2]} 27. f3 {[%clk 0:01:05.3]} 27...
Kg7 {[%clk 0:00:47.8]} 28. Rxe8 {[%clk 0:01:02.1]} 28... Rxe8 {[%clk 0:00:47.2]}
29. Kf2 {[%clk 0:01:02.5]} 29... a5 {[%clk 0:00:44.1]} 30. Re1 {[%clk
0:00:57.7]} 30... Rxe1 {[%clk 0:00:38.1]} 31. Kxe1 {[%clk 0:00:57.5]} 31... Kf7
{[%clk 0:00:39]} 32. Kd2 {[%clk 0:00:51.8]} 32... Ke6 {[%clk 0:00:39.9]} 33. Ke3
{[%clk 0:00:48.4]} 33... Kd5 {[%clk 0:00:40.3]} 34. b3 {[%clk 0:00:47.4]} 34...
Bb5 {[%clk 0:00:39.8]} 35. g4 {[%clk 0:00:45.5]} 35... Bf1 {[%clk 0:00:36.9]}
36. g3 {[%clk 0:00:44.5]} 36... Bb5 {[%clk 0:00:33.7]} 37. a3 {[%clk 0:00:41.7]}
37... Ba6 {[%clk 0:00:33]} 38. f4 {[%clk 0:00:38.6]} 38... Bb5 {[%clk 0:00:32]}
39. g5 {[%clk 0:00:37.4]} 39... f5 {[%clk 0:00:31]} 40. g4 {[%clk 0:00:37]}
40... fxg4 {[%clk 0:00:23.5]} 41. f5 {[%clk 0:00:37]} 41... Bd7 {[%clk
0:00:23.7]} 42. f6 {[%clk 0:00:29.3]} 42... Ke6 {[%clk 0:00:16.1]} 43. Kf4
{[%clk 0:00:26.6]} 43... Kf7 {[%clk 0:00:16.3]} 44. d5 {[%clk 0:00:24.3]} 44...
h5 {[%clk 0:00:13.2]} 45. c6 {[%clk 0:00:23.3]} 45... Be8 {[%clk 0:00:10.6]} 46.
b4 {[%clk 0:00:19.7]} 46... axb4 {[%clk 0:00:11.5]} 47. axb4 {[%clk 0:00:19.5]}
47... h4 {[%clk 0:00:10.5]} 48. Kxg4 {[%clk 0:00:18.8]} 48... h3 {[%clk
0:00:10.9]} 49. Kxh3 {[%clk 0:00:18.5]} 49... Kg6 {[%clk 0:00:10.5]} 50. Kh4
{[%clk 0:00:17.6]} 50... Kf5 {[%clk 0:00:10]} 51. b5 {[%clk 0:00:17.8]} 51...
Ke5 {[%clk 0:00:10.2]} 52. b6 {[%clk 0:00:17.4]} 52... Kxd5 {[%clk 0:00:10.4]}
53. b7 {[%clk 0:00:17.5]} 53... Kxc6 {[%clk 0:00:11.3]} 54. b8=Q {[%clk
0:00:17.3]} 54... Kd7 {[%clk 0:00:12.2]} 1-0

[Event "*** SCC Grand Prix: Titled Tuesday Blitz"]
[Site "Chess.com"]
[Date "2020.06.02"]
[Round "8"]
[White "maximnovik"]
[Black "EugeneRougon"]
[Result "1-0"]
[WhiteElo "2482"]
[BlackElo "2637"]
[TimeControl "180+1"]
[EndTime "11:37:14 PDT"]
[Termination "maximnovik won on time"]

1. d4 {[%clk 0:03:00.9]} 1... d5 {[%clk 0:02:52.4]} 2. c4 {[%clk 0:03:00]} 2...
c6 {[%clk 0:02:52.5]} 3. Nc3 {[%clk 0:02:57.9]} 3... Nf6 {[%clk 0:02:50.2]} 4.
Bf4 {[%clk 0:02:56.1]} 4... dxc4 {[%clk 0:02:38.8]} 5. e3 {[%clk 0:02:55.9]}
5... Nd5 {[%clk 0:02:20.6]} 6. Bxc4 {[%clk 0:02:54.2]} 6... Nxf4 {[%clk
0:02:20.3]} 7. exf4 {[%clk 0:02:53.1]} 7... g6 {[%clk 0:02:11]} 8. Nf3 {[%clk
0:02:51.1]} 8... Bg7 {[%clk 0:02:08.2]} 9. Qb3 {[%clk 0:02:45.4]} 9... O-O
{[%clk 0:02:04.2]} 10. O-O-O {[%clk 0:02:43.6]} 10... b5 {[%clk 0:02:03.2]} 11.
Be2 {[%clk 0:02:39.9]} 11... a5 {[%clk 0:01:57.5]} 12. Ne5 {[%clk 0:02:33.2]}
12... a4 {[%clk 0:01:46]} 13. Qc2 {[%clk 0:02:33.2]} 13... a3 {[%clk 0:01:02.7]}
14. b4 {[%clk 0:02:30.8]} 14... Qd6 {[%clk 0:00:46]} 15. Qb3 {[%clk 0:02:09.6]}
15... Be6 {[%clk 0:00:44.7]} 16. d5 {[%clk 0:02:09.3]} 16... cxd5 {[%clk
0:00:41.2]} 17. Nxb5 {[%clk 0:01:57.8]} 17... Qb6 {[%clk 0:00:35.5]} 18. Nd4
{[%clk 0:01:45.2]} 18... Na6 {[%clk 0:00:25.5]} 19. Bxa6 {[%clk 0:01:38.1]}
19... Rxa6 {[%clk 0:00:25.7]} 20. Rhe1 {[%clk 0:01:25.8]} 20... Ra7 {[%clk
0:00:18.7]} 21. Re3 {[%clk 0:01:14.1]} 21... Rc7+ {[%clk 0:00:18]} 22. Kb1
{[%clk 0:01:11]} 22... Rfc8 {[%clk 0:00:18.2]} 23. Qxa3 {[%clk 0:01:04.2]} 23...
Bxe5 {[%clk 0:00:17.8]} 24. fxe5 {[%clk 0:01:03.3]} 24... Rc4 {[%clk 0:00:17.4]}
25. Nxe6 {[%clk 0:00:52.3]} 25... fxe6 {[%clk 0:00:17.6]} 26. Rb3 {[%clk
0:00:51.9]} 26... Qxf2 {[%clk 0:00:17.2]} 27. Qb2 {[%clk 0:00:42.8]} 27... Rc2
{[%clk 0:00:15.6]} 28. Qd4 {[%clk 0:00:42.5]} 28... Qf5 {[%clk 0:00:14.2]} 29.
Qd3 {[%clk 0:00:40]} 29... Rc1+ {[%clk 0:00:12.6]} 30. Rxc1 {[%clk 0:00:38.4]}
30... Rxc1+ {[%clk 0:00:11.4]} 31. Kxc1 {[%clk 0:00:38.2]} 31... Qxe5 {[%clk
0:00:10.6]} 32. b5 {[%clk 0:00:36.6]} 32... Qa1+ {[%clk 0:00:09]} 33. Qb1 {[%clk
0:00:35.9]} 33... Qd4 {[%clk 0:00:09.6]} 34. Qc2 {[%clk 0:00:35.8]} 34... Qg1+
{[%clk 0:00:09.1]} 35. Kb2 {[%clk 0:00:35.9]} 35... Qd4+ {[%clk 0:00:09.7]} 36.
Kb1 {[%clk 0:00:35.9]} 36... Qg1+ {[%clk 0:00:09.7]} 37. Qc1 {[%clk 0:00:36]}
37... Qb6 {[%clk 0:00:10.4]} 38. Qc8+ {[%clk 0:00:35.7]} 38... Kg7 {[%clk
0:00:09.1]} 39. Qc3+ {[%clk 0:00:35.2]} 39... d4 {[%clk 0:00:08.4]} 40. Qc6
{[%clk 0:00:34.8]} 40... Qa5 {[%clk 0:00:08.8]} 41. b6 {[%clk 0:00:33.5]} 41...
Qe1+ {[%clk 0:00:08.6]} 42. Qc1 {[%clk 0:00:33.2]} 42... Qe4+ {[%clk 0:00:09.3]}
43. Qc2 {[%clk 0:00:33.4]} 43... Qe1+ {[%clk 0:00:09.8]} 44. Kb2 {[%clk
0:00:33.3]} 44... Qe5 {[%clk 0:00:09.8]} 45. Qd3 {[%clk 0:00:31.2]} 45... Qf4
{[%clk 0:00:04.3]} 46. b7 {[%clk 0:00:29.5]} 46... Qf2+ {[%clk 0:00:03.5]} 47.
Qc2 {[%clk 0:00:29.6]} 47... Qf6 {[%clk 0:00:04.3]} 48. b8=Q {[%clk 0:00:26.8]}
48... d3+ {[%clk 0:00:03.8]} 49. Qc3 {[%clk 0:00:26.4]} 49... d2 {[%clk
0:00:04.7]} 50. Qxf6+ {[%clk 0:00:26]} 50... exf6 {[%clk 0:00:02.2]} 51. Rd3
{[%clk 0:00:24.6]} 51... Kh6 {[%clk 0:00:03]} 52. Rxd2 {[%clk 0:00:24.4]} 1-0

[Event "*** SCC Grand Prix: Titled Tuesday Blitz"]
[Site "Chess.com"]
[Date "2020.06.02"]
[Round "8"]
[White "albano87"]
[Black "Chuchofrio1"]
[Result "0-1"]
[WhiteElo "2418"]
[BlackElo "2283"]
[TimeControl "180+1"]
[EndTime "11:37:14 PDT"]
[Termination "Chuchofrio1 won on time"]

1. Nf3 {[%clk 0:03:00.9]} 1... Nf6 {[%clk 0:02:59]} 2. g3 {[%clk 0:03:00.7]}
2... e6 {[%clk 0:02:58.1]} 3. Bg2 {[%clk 0:03:00.8]} 3... d5 {[%clk 0:02:57.3]}
4. O-O {[%clk 0:03:01.3]} 4... Be7 {[%clk 0:02:56.4]} 5. d4 {[%clk 0:03:01.8]}
5... b5 {[%clk 0:02:53.1]} 6. Nbd2 {[%clk 0:02:59.4]} 6... Bb7 {[%clk
0:02:52.2]} 7. b3 {[%clk 0:02:57.7]} 7... Nbd7 {[%clk 0:02:43.5]} 8. c4 {[%clk
0:02:56.8]} 8... bxc4 {[%clk 0:02:35]} 9. bxc4 {[%clk 0:02:57.7]} 9... c5 {[%clk
0:02:28.6]} 10. cxd5 {[%clk 0:02:26]} 10... Bxd5 {[%clk 0:02:26.1]} 11. Ne5
{[%clk 0:02:00.1]} 11... Bxg2 {[%clk 0:02:20.4]} 12. Kxg2 {[%clk 0:01:57.4]}
12... Qc7 {[%clk 0:01:46.9]} 13. Ndf3 {[%clk 0:01:26.8]} 13... cxd4 {[%clk
0:01:37.6]} 14. Qxd4 {[%clk 0:01:03.9]} 14... O-O {[%clk 0:01:30.1]} 15. Bb2
{[%clk 0:00:48.1]} 15... Nxe5 {[%clk 0:01:29.3]} 16. Qxe5 {[%clk 0:00:38.6]}
16... Qxe5 {[%clk 0:01:23.7]} 17. Bxe5 {[%clk 0:00:37.1]} 17... Rac8 {[%clk
0:01:22.7]} 18. Rac1 {[%clk 0:00:26]} 18... Ba3 {[%clk 0:01:22]} 19. Rxc8 {[%clk
0:00:22.3]} 19... Rxc8 {[%clk 0:01:21.1]} 20. Rd1 {[%clk 0:00:22.2]} 20... Nd5
{[%clk 0:01:01.8]} 21. e4 {[%clk 0:00:21.1]} 21... Nb6 {[%clk 0:01:01.2]} 22.
Bf4 {[%clk 0:00:08.9]} 22... h6 {[%clk 0:00:57.2]} 23. Nd2 {[%clk 0:00:03.2]}
23... Rd8 {[%clk 0:00:53.7]} 24. Kf1 {[%clk 0:00:02.6]} 24... g5 {[%clk
0:00:36.3]} 25. Be3 {[%clk 0:00:02.4]} 25... Nc4 {[%clk 0:00:34.2]} 26. Ke2
{[%clk 0:00:03]} 26... Nxe3 {[%clk 0:00:26.5]} 27. Kxe3 {[%clk 0:00:03.9]} 27...
Bc5+ {[%clk 0:00:22.7]} 28. Ke2 {[%clk 0:00:04.5]} 28... Rc8 {[%clk 0:00:19.6]}
29. f3 {[%clk 0:00:04.6]} 29... e5 {[%clk 0:00:18.9]} 30. Rc1 {[%clk 0:00:04.5]}
30... Rc7 {[%clk 0:00:16.4]} 31. Nb3 {[%clk 0:00:04.5]} 31... Bb6 {[%clk
0:00:16.6]} 32. Rxc7 {[%clk 0:00:05.4]} 32... Bxc7 {[%clk 0:00:16.7]} 33. Nd2
{[%clk 0:00:05.6]} 33... Kf8 {[%clk 0:00:16.2]} 34. Nc4 {[%clk 0:00:05.9]} 34...
Ke7 {[%clk 0:00:15.1]} 35. Kd3 {[%clk 0:00:06.5]} 35... Ke6 {[%clk 0:00:13.9]}
36. Ne3 {[%clk 0:00:06.9]} 36... Bd6 {[%clk 0:00:13.1]} 37. Nf5 {[%clk
0:00:06.7]} 37... Bf8 {[%clk 0:00:12.3]} 38. Kc4 {[%clk 0:00:06.8]} 38... h5
{[%clk 0:00:11.3]} 39. Kb5 {[%clk 0:00:06.1]} 39... Kd7 {[%clk 0:00:08.7]} 40.
Ka6 {[%clk 0:00:05.9]} 40... Bc5 {[%clk 0:00:08.5]} 41. Ng7 {[%clk 0:00:05.8]}
41... h4 {[%clk 0:00:07.7]} 42. g4 {[%clk 0:00:04.2]} 42... h3 {[%clk
0:00:06.5]} 43. Nf5 {[%clk 0:00:02.2]} 43... Bg1 {[%clk 0:00:06.2]} 44. Ng3
{[%clk 0:00:01.3]} 44... Bxh2 {[%clk 0:00:04.8]} 45. Nf1 {[%clk 0:00:01.4]}
45... Bg1 {[%clk 0:00:04.8]} 0-1

[Event "*** SCC Grand Prix: Titled Tuesday Blitz"]
[Site "Chess.com"]
[Date "2020.06.02"]
[Round "8"]
[White "Margarita2907"]
[Black "lucachess49"]
[Result "0-1"]
[WhiteElo "2058"]
[BlackElo "2233"]
[TimeControl "180+1"]
[EndTime "11:37:14 PDT"]
[Termination "lucachess49 won on time"]

1. e4 {[%clk 0:03:00.9]} 1... e5 {[%clk 0:02:59.2]} 2. Nf3 {[%clk 0:02:59.6]}
2... Nc6 {[%clk 0:02:59.4]} 3. Bb5 {[%clk 0:02:59]} 3... a6 {[%clk 0:02:54.8]}
4. Ba4 {[%clk 0:02:57.6]} 4... Nf6 {[%clk 0:02:53.9]} 5. d3 {[%clk 0:02:56.9]}
5... d6 {[%clk 0:02:52.7]} 6. c3 {[%clk 0:02:55.1]} 6... g6 {[%clk 0:02:48.7]}
7. O-O {[%clk 0:02:54.1]} 7... Bg7 {[%clk 0:02:47.4]} 8. Re1 {[%clk 0:02:50.8]}
8... O-O {[%clk 0:02:45.4]} 9. Nbd2 {[%clk 0:02:50.5]} 9... b5 {[%clk
0:02:27.3]} 10. Bc2 {[%clk 0:02:48.7]} 10... Bb7 {[%clk 0:02:27.8]} 11. Nf1
{[%clk 0:02:46.6]} 11... Re8 {[%clk 0:02:25.8]} 12. Ng3 {[%clk 0:02:41.1]} 12...
d5 {[%clk 0:02:25.7]} 13. exd5 {[%clk 0:02:36.9]} 13... Nxd5 {[%clk 0:02:26.6]}
14. a4 {[%clk 0:02:33.6]} 14... b4 {[%clk 0:02:12.9]} 15. Bd2 {[%clk 0:02:23.2]}
15... Nf4 {[%clk 0:02:00.9]} 16. Bxf4 {[%clk 0:02:19.4]} 16... exf4 {[%clk
0:02:01.8]} 17. Rxe8+ {[%clk 0:02:07.2]} 17... Qxe8 {[%clk 0:02:02.7]} 18. Ne4
{[%clk 0:02:07.1]} 18... bxc3 {[%clk 0:01:55.1]} 19. bxc3 {[%clk 0:02:03.8]}
19... Ne5 {[%clk 0:01:54.9]} 20. Nxe5 {[%clk 0:01:58.5]} 20... Qxe5 {[%clk
0:01:55.8]} 21. d4 {[%clk 0:01:50.6]} 21... Qa5 {[%clk 0:01:52.7]} 22. Nc5
{[%clk 0:01:39.3]} 22... Bd5 {[%clk 0:01:47.3]} 23. Qd3 {[%clk 0:01:22.7]} 23...
Re8 {[%clk 0:01:42.8]} 24. Rb1 {[%clk 0:01:05.2]} 24... c6 {[%clk 0:01:35.6]}
25. c4 {[%clk 0:00:58.3]} 25... Re1+ {[%clk 0:01:31.1]} 26. Rxe1 {[%clk
0:00:56.4]} 26... Qxe1+ {[%clk 0:01:31.6]} 27. Qf1 {[%clk 0:00:55.9]} 27...
Qxf1+ {[%clk 0:01:32]} 28. Kxf1 {[%clk 0:00:55.8]} 28... Bxc4+ {[%clk
0:01:32.6]} 29. Ke1 {[%clk 0:00:56.1]} 29... Bxd4 {[%clk 0:01:31.9]} 30. Ne4
{[%clk 0:00:47.8]} 30... f5 {[%clk 0:01:20.3]} 31. Nd6 {[%clk 0:00:47]} 31...
Bc3+ {[%clk 0:01:00.8]} 32. Kd1 {[%clk 0:00:43.4]} 32... Bf1 {[%clk 0:00:57.4]}
33. g3 {[%clk 0:00:33.2]} 33... f3 {[%clk 0:00:56.4]} 34. Bb3+ {[%clk
0:00:29.2]} 34... Kf8 {[%clk 0:00:53.7]} 35. Nb7 {[%clk 0:00:22.1]} 35... Be2+
{[%clk 0:00:50.1]} 36. Kc2 {[%clk 0:00:18.6]} 36... Bd4 {[%clk 0:00:48.6]} 37.
Na5 {[%clk 0:00:14.9]} 37... Bxf2 {[%clk 0:00:41.7]} 38. Nxc6 {[%clk 0:00:15.2]}
38... Bxg3 {[%clk 0:00:36.4]} 39. Kd2 {[%clk 0:00:13.1]} 39... Bf4+ {[%clk
0:00:29.6]} 40. Ke1 {[%clk 0:00:12.6]} 40... Bxh2 {[%clk 0:00:29.6]} 41. Nd4
{[%clk 0:00:09.4]} 41... Bg3+ {[%clk 0:00:27.6]} 42. Kd2 {[%clk 0:00:08.4]}
42... Bf4+ {[%clk 0:00:24.8]} 43. Ke1 {[%clk 0:00:06.6]} 43... Be3 {[%clk
0:00:25]} 44. Nxe2 {[%clk 0:00:06]} 44... fxe2 {[%clk 0:00:25.9]} 45. Kxe2
{[%clk 0:00:06.3]} 45... Bb6 {[%clk 0:00:25.2]} 46. Bc4 {[%clk 0:00:03.8]} 46...
a5 {[%clk 0:00:24.2]} 47. Kf3 {[%clk 0:00:03.9]} 47... Kg7 {[%clk 0:00:23.8]}
48. Kf4 {[%clk 0:00:03.7]} 48... Kf6 {[%clk 0:00:24.2]} 49. Bg8 {[%clk
0:00:02.5]} 49... g5+ {[%clk 0:00:24.3]} 0-1

[Event "*** SCC Grand Prix: Titled Tuesday Blitz"]
[Site "Chess.com"]
[Date "2020.06.02"]
[Round "8"]
[White "GHANDEEVAM2003"]
[Black "Msb2"]
[Result "1/2-1/2"]
[WhiteElo "2960"]
[BlackElo "2851"]
[TimeControl "180+1"]
[EndTime "11:37:15 PDT"]
[Termination "Game drawn by repetition"]

1. e4 {[%clk 0:03:00.9]} 1... e6 {[%clk 0:03:00]} 2. d3 {[%clk 0:02:56.5]} 2...
d5 {[%clk 0:03:00]} 3. Qe2 {[%clk 0:02:57]} 3... Nc6 {[%clk 0:03:00.1]} 4. c3
{[%clk 0:02:55.5]} 4... e5 {[%clk 0:02:58.1]} 5. Nd2 {[%clk 0:02:49.5]} 5... Nf6
{[%clk 0:02:58.2]} 6. Ngf3 {[%clk 0:02:48.6]} 6... a5 {[%clk 0:02:56]} 7. g3
{[%clk 0:02:47.4]} 7... dxe4 {[%clk 0:02:55.3]} 8. Nxe4 {[%clk 0:02:41.9]} 8...
Nxe4 {[%clk 0:02:55.4]} 9. dxe4 {[%clk 0:02:42.8]} 9... Bc5 {[%clk 0:02:53.3]}
10. Bg2 {[%clk 0:02:42.3]} 10... O-O {[%clk 0:02:53.3]} 11. Bg5 {[%clk
0:02:41.4]} 11... Qe8 {[%clk 0:02:46.3]} 12. O-O {[%clk 0:02:36.8]} 12... b6
{[%clk 0:02:45.3]} 13. Rfd1 {[%clk 0:02:35.6]} 13... f6 {[%clk 0:02:42.6]} 14.
Be3 {[%clk 0:02:32.3]} 14... Ba6 {[%clk 0:02:42.8]} 15. Qe1 {[%clk 0:02:32.6]}
15... Qe7 {[%clk 0:02:39.2]} 16. Bxc5 {[%clk 0:02:22.2]} 16... Qxc5 {[%clk
0:02:40.1]} 17. Rd5 {[%clk 0:02:22.6]} 17... Qe7 {[%clk 0:02:38.3]} 18. Rad1
{[%clk 0:02:23.1]} 18... Rfd8 {[%clk 0:02:37]} 19. Bf1 {[%clk 0:02:21.9]} 19...
Bc8 {[%clk 0:01:58.7]} 20. Nh4 {[%clk 0:01:44.4]} 20... g6 {[%clk 0:01:54.2]}
21. Bc4 {[%clk 0:01:19.5]} 21... Be6 {[%clk 0:01:49.9]} 22. R1d3 {[%clk
0:01:13.6]} 22... Kg7 {[%clk 0:01:44.8]} 23. Rxd8 {[%clk 0:01:07.1]} 23... Rxd8
{[%clk 0:01:44.9]} 24. Rxd8 {[%clk 0:01:03.4]} 24... Nxd8 {[%clk 0:01:45.8]} 25.
Qe2 {[%clk 0:01:03.7]} 25... Bxc4 {[%clk 0:01:36.3]} 26. Qxc4 {[%clk 0:01:04.6]}
26... Qd7 {[%clk 0:01:36.9]} 27. Kg2 {[%clk 0:00:57.9]} 27... Ne6 {[%clk
0:01:26.9]} 28. Nf3 {[%clk 0:00:57.8]} 28... b5 {[%clk 0:01:20.7]} 29. Qe2
{[%clk 0:00:53.5]} 29... Nc5 {[%clk 0:01:17.1]} 30. Qe3 {[%clk 0:00:52.1]} 30...
Qd6 {[%clk 0:01:16.8]} 31. Nd2 {[%clk 0:00:49.7]} 31... a4 {[%clk 0:01:15.1]}
32. b4 {[%clk 0:00:45.7]} 32... Ne6 {[%clk 0:01:07]} 33. a3 {[%clk 0:00:42.2]}
33... c5 {[%clk 0:01:02.8]} 34. Nf3 {[%clk 0:00:40.2]} 34... h5 {[%clk
0:00:40.3]} 35. h4 {[%clk 0:00:38.6]} 35... Kh7 {[%clk 0:00:35]} 36. Ne1 {[%clk
0:00:34]} 36... cxb4 {[%clk 0:00:34.4]} 37. cxb4 {[%clk 0:00:32.7]} 37... Qd4
{[%clk 0:00:33.7]} 38. Nc2 {[%clk 0:00:29]} 38... Qxe3 {[%clk 0:00:31.6]} 39.
Nxe3 {[%clk 0:00:29.9]} 39... Nd4 {[%clk 0:00:32.5]} 40. Kf1 {[%clk 0:00:28.5]}
40... Kg7 {[%clk 0:00:29.1]} 41. Ke1 {[%clk 0:00:28.4]} 41... f5 {[%clk
0:00:27.3]} 42. exf5 {[%clk 0:00:25.7]} 42... gxf5 {[%clk 0:00:28.2]} 43. Kd2
{[%clk 0:00:26.6]} 43... Kf6 {[%clk 0:00:25.1]} 44. Kd3 {[%clk 0:00:23.3]} 44...
Ke6 {[%clk 0:00:24.3]} 45. f4 {[%clk 0:00:21.6]} 45... exf4 {[%clk 0:00:17.2]}
46. Kxd4 {[%clk 0:00:18.5]} 46... fxe3 {[%clk 0:00:15.4]} 47. Kxe3 {[%clk
0:00:19.4]} 47... Ke5 {[%clk 0:00:15.1]} 48. Kf3 {[%clk 0:00:18.2]} 48... Ke6
{[%clk 0:00:07.7]} 49. Ke3 {[%clk 0:00:15.6]} 49... Ke5 {[%clk 0:00:08.1]} 50.
Kf3 {[%clk 0:00:15.8]} 50... Ke6 {[%clk 0:00:05.4]} 51. Kf4 {[%clk 0:00:16.3]}
51... Kf6 {[%clk 0:00:05.7]} 52. Kf3 {[%clk 0:00:16.3]} 52... Ke6 {[%clk
0:00:05.9]} 1/2-1/2

[Event "*** SCC Grand Prix: Titled Tuesday Blitz"]
[Site "Chess.com"]
[Date "2020.06.02"]
[Round "8"]
[White "chargemax23"]
[Black "XiaoKangZhong"]
[Result "1-0"]
[WhiteElo "2593"]
[BlackElo "2442"]
[TimeControl "180+1"]
[EndTime "11:37:15 PDT"]
[Termination "chargemax23 won on time"]

1. Nf3 {[%clk 0:03:00.9]} 1... Nf6 {[%clk 0:02:59.5]} 2. d4 {[%clk 0:03:00.2]}
2... d5 {[%clk 0:02:51.9]} 3. Bf4 {[%clk 0:02:57.8]} 3... e6 {[%clk 0:02:44.1]}
4. e3 {[%clk 0:02:56.6]} 4... Bd6 {[%clk 0:02:43.9]} 5. Bg3 {[%clk 0:02:55.7]}
5... O-O {[%clk 0:02:42.3]} 6. Nbd2 {[%clk 0:02:52.1]} 6... c5 {[%clk 0:02:42]}
7. c3 {[%clk 0:02:50.6]} 7... Nc6 {[%clk 0:02:41.1]} 8. Ne5 {[%clk 0:02:44.6]}
8... cxd4 {[%clk 0:02:35]} 9. exd4 {[%clk 0:02:42.1]} 9... Qb6 {[%clk
0:02:27.9]} 10. Nd3 {[%clk 0:02:17.8]} 10... Bxg3 {[%clk 0:02:21]} 11. hxg3
{[%clk 0:02:17.4]} 11... Ne7 {[%clk 0:02:21.5]} 12. Qc2 {[%clk 0:02:09]} 12...
Rd8 {[%clk 0:02:14.3]} 13. Ne5 {[%clk 0:01:58.3]} 13... Ng6 {[%clk 0:02:13]} 14.
Bd3 {[%clk 0:01:54.2]} 14... Bd7 {[%clk 0:01:56.8]} 15. Ndf3 {[%clk 0:01:46.3]}
15... Rac8 {[%clk 0:01:54.2]} 16. O-O-O {[%clk 0:01:35.9]} 16... Be8 {[%clk
0:01:41.8]} 17. Kb1 {[%clk 0:01:32.2]} 17... Qd6 {[%clk 0:01:39.8]} 18. Ng5
{[%clk 0:01:20.6]} 18... b5 {[%clk 0:01:27.2]} 19. f4 {[%clk 0:00:56.2]} 19...
b4 {[%clk 0:01:05.9]} 20. f5 {[%clk 0:00:45.6]} 20... exf5 {[%clk 0:01:05.9]}
21. Bxf5 {[%clk 0:00:45.2]} 21... Rb8 {[%clk 0:01:03.6]} 22. c4 {[%clk
0:00:43.9]} 22... dxc4 {[%clk 0:01:02.7]} 23. Qxc4 {[%clk 0:00:38.8]} 23... Nxe5
{[%clk 0:00:55.6]} 24. dxe5 {[%clk 0:00:35.7]} 24... Qxe5 {[%clk 0:00:55]} 25.
Qc2 {[%clk 0:00:31.2]} 25... h6 {[%clk 0:00:53.7]} 26. Nf3 {[%clk 0:00:29.9]}
26... Qa5 {[%clk 0:00:40.8]} 27. Rde1 {[%clk 0:00:28]} 27... b3 {[%clk
0:00:33.4]} 28. axb3 {[%clk 0:00:27.5]} 28... Qb6 {[%clk 0:00:29.3]} 29. g4
{[%clk 0:00:23.3]} 29... Qxb3 {[%clk 0:00:27.6]} 30. g5 {[%clk 0:00:22.8]} 30...
Qxc2+ {[%clk 0:00:26.9]} 31. Bxc2 {[%clk 0:00:21.9]} 31... hxg5 {[%clk
0:00:27.2]} 32. Nxg5 {[%clk 0:00:22.1]} 32... Bc6 {[%clk 0:00:27.4]} 33. Re2
{[%clk 0:00:19.8]} 33... Re8 {[%clk 0:00:26.2]} 34. Rf2 {[%clk 0:00:19]} 34...
Rb7 {[%clk 0:00:23.5]} 35. Rd1 {[%clk 0:00:15.6]} 35... Reb8 {[%clk 0:00:22.8]}
36. Bf5 {[%clk 0:00:13.2]} 36... g6 {[%clk 0:00:18.2]} 37. Bd3 {[%clk
0:00:12.1]} 37... Kg7 {[%clk 0:00:18.2]} 38. Rdd2 {[%clk 0:00:09.6]} 38... Nd5
{[%clk 0:00:17.7]} 39. Bc4 {[%clk 0:00:09.4]} 39... Nf6 {[%clk 0:00:12.8]} 40.
g4 {[%clk 0:00:08.7]} 40... Be4+ {[%clk 0:00:07.8]} 41. Ka2 {[%clk 0:00:07.7]}
41... Rb4 {[%clk 0:00:06.7]} 42. b3 {[%clk 0:00:07.9]} 42... Bc6 {[%clk
0:00:03.5]} 43. Nxf7 {[%clk 0:00:07.5]} 43... Be8 {[%clk 0:00:03.4]} 44. Nd6
{[%clk 0:00:07]} 44... Bc6 {[%clk 0:00:03.7]} 45. g5 {[%clk 0:00:07.2]} 45...
Nh5 {[%clk 0:00:01.8]} 46. Rf7+ {[%clk 0:00:06.9]} 46... Kh8 {[%clk 0:00:02.4]}
47. Re2 {[%clk 0:00:06.1]} 47... Rd8 {[%clk 0:00:02.1]} 48. Ree7 {[%clk
0:00:05.8]} 1-0